[Event "Titled Tuesday Blitz August 31 2021"]
[White "Holt, Conrad"]
[Black "Willychess95"]
[WhiteFideId "2034387"]
[WhiteElo "2586"]
[BlackElo "2549"]
[Result "1-0"]
[Round "04"]
[TimeControl "180+1"]
[Date "2021.08.31"]
[WhiteClock "0:00:30"]
[BlackClock "0:00:23"]

1. d4 {[%clk 0:03:00]}  Nf6 {[%clk 0:02:58]} 2. c4 {[%clk 0:03:00]}  e6 {[%clk 0:02:58]} 3. Nc3 {[%clk 0:03:01]}  Bb4 {[%clk 0:02:57]} 4. Qc2 {[%clk 0:03:01]}  d5 {[%clk 0:02:57]} 5. cxd5 {[%clk 0:03:00]}  exd5 {[%clk 0:02:55]} 6. Bg5 {[%clk 0:02:57]}  h6 {[%clk 0:02:54]} 7. Bxf6 {[%clk 0:02:57]}  Qxf6 {[%clk 0:02:52]} 8. a3 {[%clk 0:02:58]}  Bxc3+ {[%clk 0:02:49]} 9. Qxc3 {[%clk 0:02:58]}  c6 {[%clk 0:02:48]} 10. e3 {[%clk 0:02:58]}  O-O {[%clk 0:02:47]} 11. Ne2 {[%clk 0:02:58]}  Qe7 {[%clk 0:02:40]} 12. Ng3 {[%clk 0:02:56]}  Nd7 {[%clk 0:02:39]} 13. Bd3 {[%clk 0:02:53]}  Nf6 {[%clk 0:02:39]} 14. O-O {[%clk 0:02:52]}  h5 {[%clk 0:02:34]} 15. b4 {[%clk 0:02:32]}  h4 {[%clk 0:02:33]} 16. Nf5 {[%clk 0:02:31]}  Bxf5 {[%clk 0:02:28]} 17. Bxf5 {[%clk 0:02:31]}  g6 {[%clk 0:02:28]} 18. Bd3 {[%clk 0:02:27]}  Ne4 {[%clk 0:02:23]} 19. Qc2 {[%clk 0:02:26]}  Nd6 {[%clk 0:02:20]} 20. a4 {[%clk 0:02:14]}  Rac8 {[%clk 0:02:15]} 21. Rfe1 {[%clk 0:02:03]}  Rfe8 {[%clk 0:02:13]} 22. Rac1 {[%clk 0:01:54]}  Kg7 {[%clk 0:02:11]} 23. Qb2 {[%clk 0:01:45]}  f5 {[%clk 0:02:01]} 24. b5 {[%clk 0:01:43]}  f4 {[%clk 0:01:52]} 25. Qb4 {[%clk 0:01:34]}  f3 {[%clk 0:01:43]} 26. gxf3 {[%clk 0:01:32]}  Rf8 {[%clk 0:01:20]} 27. Kh1 {[%clk 0:01:21]}  Rxf3 {[%clk 0:01:11]} 28. Rg1 {[%clk 0:01:20]}  Rf6 {[%clk 0:00:54]} 29. Rg4 {[%clk 0:01:02]}  Qe6 {[%clk 0:00:44]} 30. Rcg1 {[%clk 0:00:55]}  Nf5 {[%clk 0:00:29]} 31. bxc6 {[%clk 0:00:43]}  bxc6 {[%clk 0:00:24]} 32. Qb7+ {[%clk 0:00:42]}  Kh6 {[%clk 0:00:24]} 33. Bxf5 {[%clk 0:00:31]}  Rxf5 {[%clk 0:00:23]} 34. Rxg6+ {[%clk 0:00:30]} 1-0


[Site "https://www.chess.com"]

[Event "Titled Tuesday Blitz August 31 2021"]
[White "Hryshchenko, Kamila"]
[Black "Rodriguez Hernandez, Luis Daniel"]
[WhiteFideId "14147491"]
[BlackFideId "3506770"]
[WhiteElo "1936"]
[BlackElo "2133"]
[Result "1/2-1/2"]
[Round "04"]
[TimeControl "180+1"]
[Date "2021.08.31"]
[WhiteClock "0:00:08"]
[BlackClock "0:00:19"]

1. e4 {[%clk 0:03:00]}  e5 {[%clk 0:02:59]} 2. Nf3 {[%clk 0:03:00]}  Nc6 {[%clk 0:02:59]} 3. Bb5 {[%clk 0:03:01]}  a6 {[%clk 0:02:59]} 4. Ba4 {[%clk 0:03:01]}  Nf6 {[%clk 0:02:59]} 5. d4 {[%clk 0:02:59]}  Nxd4 {[%clk 0:02:32]} 6. Nxd4 {[%clk 0:02:56]}  exd4 {[%clk 0:02:33]} 7. e5 {[%clk 0:02:55]}  Ne4 {[%clk 0:02:33]} 8. Qxd4 {[%clk 0:02:37]}  Nc5 {[%clk 0:02:33]} 9. Bb3 {[%clk 0:02:31]}  d6 {[%clk 0:02:12]} 10. O-O {[%clk 0:02:17]}  Nxb3 {[%clk 0:02:06]} 11. axb3 {[%clk 0:02:16]}  Be6 {[%clk 0:02:02]} 12. Bf4 {[%clk 0:02:13]}  c5 {[%clk 0:01:55]} 13. Qe3 {[%clk 0:02:03]}  d5 {[%clk 0:01:55]} 14. Qg3 {[%clk 0:02:02]}  h6 {[%clk 0:01:54]} 15. Nd2 {[%clk 0:02:02]}  g5 {[%clk 0:01:53]} 16. Be3 {[%clk 0:01:59]}  d4 {[%clk 0:01:53]} 17. Ne4 {[%clk 0:01:57]}  dxe3 {[%clk 0:01:54]} 18. Nf6+ {[%clk 0:01:57]}  Ke7 {[%clk 0:01:54]} 19. Qxe3 {[%clk 0:01:37]}  Qd4 {[%clk 0:01:50]} 20. Qf3 {[%clk 0:01:22]}  Qxe5 {[%clk 0:01:07]} 21. Rfe1 {[%clk 0:01:21]}  Qb8 {[%clk 0:00:48]} 22. Nd5+ {[%clk 0:01:13]}  Ke8 {[%clk 0:00:48]} 23. Qf6 {[%clk 0:01:05]}  Rh7 {[%clk 0:00:48]} 24. Rad1 {[%clk 0:00:53]}  Bd6 {[%clk 0:00:43]} 25. Rxe6+ {[%clk 0:00:28]}  fxe6 {[%clk 0:00:44]} 26. Qxe6+ {[%clk 0:00:29]}  Kf8 {[%clk 0:00:42]} 27. Qf6+ {[%clk 0:00:10]}  Kg8 {[%clk 0:00:40]} 28. Qg6+ {[%clk 0:00:10]}  Rg7 {[%clk 0:00:23]} 29. Qe6+ {[%clk 0:00:10]}  Kf8 {[%clk 0:00:24]} 30. Qf6+ {[%clk 0:00:08]}  Kg8 {[%clk 0:00:23]} 31. Qe6+ {[%clk 0:00:08]}  Rf7 {[%clk 0:00:05]} 32. Qg6+ {[%clk 0:00:08]}  Rg7 {[%clk 0:00:03]} 33. Nf6+ {[%clk 0:00:07]}  Kf8 {[%clk 0:00:03]} 34. Qxh6 {[%clk 0:00:05]}  Qc7 {[%clk 0:00:02]} 35. Rxd6 {[%clk 0:00:04]}  Kf7 {[%clk 0:00:01]} 36. Ne4 {[%clk 0:00:03]}  Ke7 {[%clk 0:00:01]} 37. Qf6+ {[%clk 0:00:03]}  Ke8 {[%clk 0:00:01]} 38. Re6+ {[%clk 0:00:03]}  Re7 {[%clk 0:00:02]} 39. Nd6+ {[%clk 0:00:04]}  Kd8 {[%clk 0:00:02]} 40. Qf8+ {[%clk 0:00:04]}  Kd7 {[%clk 0:00:02]} 41. Qxe7+ {[%clk 0:00:04]}  Kc6 {[%clk 0:00:03]} 42. Qxc7+ {[%clk 0:00:03]}  Kxc7 {[%clk 0:00:04]} 43. Ne4 {[%clk 0:00:04]}  Kd7 {[%clk 0:00:04]} 44. Rg6 {[%clk 0:00:04]}  Rd8 {[%clk 0:00:04]} 45. f3 {[%clk 0:00:04]}  Kc7 {[%clk 0:00:04]} 46. Kf2 {[%clk 0:00:05]}  b6 {[%clk 0:00:04]} 47. Rxg5 {[%clk 0:00:05]}  Rd1 {[%clk 0:00:04]} 48. h4 {[%clk 0:00:05]}  Rc1 {[%clk 0:00:04]} 49. h5 {[%clk 0:00:05]}  Rxc2+ {[%clk 0:00:05]} 50. Kg3 {[%clk 0:00:06]}  Rc1 {[%clk 0:00:05]} 51. Kh2 {[%clk 0:00:04]}  Rd1 {[%clk 0:00:04]} 52. h6 {[%clk 0:00:05]}  Rd8 {[%clk 0:00:05]} 53. h7 {[%clk 0:00:05]}  Rh8 {[%clk 0:00:05]} 54. Rh5 {[%clk 0:00:05]}  Kd7 {[%clk 0:00:04]} 55. g4 {[%clk 0:00:04]}  Ke6 {[%clk 0:00:05]} 56. Kg3 {[%clk 0:00:04]}  Kf7 {[%clk 0:00:05]} 57. g5 {[%clk 0:00:04]}  Kg6 {[%clk 0:00:05]} 58. Rh6+ {[%clk 0:00:04]}  Kg7 {[%clk 0:00:04]} 59. Nf6 {[%clk 0:00:05]}  a5 {[%clk 0:00:02]} 60. Rh1 {[%clk 0:00:04]}  b5 {[%clk 0:00:02]} 61. Kg4 {[%clk 0:00:04]}  Kg6 {[%clk 0:00:02]} 62. f4 {[%clk 0:00:05]}  a4 {[%clk 0:00:03]} 63. f5+ {[%clk 0:00:05]}  Kg7 {[%clk 0:00:03]} 64. bxa4 {[%clk 0:00:05]}  bxa4 {[%clk 0:00:04]} 65. Ra1 {[%clk 0:00:05]}  Rb8 {[%clk 0:00:04]} 66. Rxa4 {[%clk 0:00:05]}  Kh8 {[%clk 0:00:03]} 67. Ra7 {[%clk 0:00:05]}  c4 {[%clk 0:00:03]} 68. Ra5 {[%clk 0:00:04]}  Rc8 {[%clk 0:00:01]} 69. g6 {[%clk 0:00:04]}  Kg7 {[%clk 0:00:02]} 70. Nh5+ {[%clk 0:00:02]}  Kh6 {[%clk 0:00:01]} 71. Ng3 {[%clk 0:00:01]}  c3 {[%clk 0:00:01]} 72. bxc3 {[%clk 0:00:01]}  Rc4+ {[%clk 0:00:01]} 73. Kf3 {[%clk 0:00:01]}  Rxc3+ {[%clk 0:00:02]} 74. Kg2 {[%clk 0:00:01]}  Rc8 {[%clk 0:00:02]} 75. Kh3 {[%clk 0:00:02]}  Kg7 {[%clk 0:00:02]} 76. f6+ {[%clk 0:00:03]}  Kh6 {[%clk 0:00:03]} 77. g7 {[%clk 0:00:03]}  Kxh7 {[%clk 0:00:03]} 78. f7 {[%clk 0:00:03]}  Kxg7 {[%clk 0:00:03]} 79. Ra7 {[%clk 0:00:04]}  Rh8+ {[%clk 0:00:01]} 80. Kg4 {[%clk 0:00:04]}  Rf8 {[%clk 0:00:02]} 81. Kf4 {[%clk 0:00:05]}  Kf6 {[%clk 0:00:03]} 82. Ke4 {[%clk 0:00:05]}  Rxf7 {[%clk 0:00:03]} 83. Nh5+ {[%clk 0:00:05]}  Kg6 {[%clk 0:00:03]} 84. Ra6+ {[%clk 0:00:06]}  Kxh5 {[%clk 0:00:03]} 85. Re6 {[%clk 0:00:07]}  Kg5 {[%clk 0:00:03]} 86. Re5+ {[%clk 0:00:08]}  Kg4 {[%clk 0:00:04]} 87. Rd5 {[%clk 0:00:09]}  Rf4+ {[%clk 0:00:04]} 88. Ke5 {[%clk 0:00:09]}  Ra4 {[%clk 0:00:05]} 89. Kd6 {[%clk 0:00:10]}  Ra6+ {[%clk 0:00:05]} 90. Kc5 {[%clk 0:00:10]}  Kf4 {[%clk 0:00:05]} 91. Kd4 {[%clk 0:00:11]}  Ra2 {[%clk 0:00:04]} 92. Kc5 {[%clk 0:00:12]}  Ke4 {[%clk 0:00:05]} 93. Rd4+ {[%clk 0:00:13]}  Ke5 {[%clk 0:00:05]} 94. Rd5+ {[%clk 0:00:13]}  Ke6 {[%clk 0:00:05]} 95. Rd6+ {[%clk 0:00:13]}  Ke7 {[%clk 0:00:06]} 96. Rd1 {[%clk 0:00:13]}  Rc2+ {[%clk 0:00:06]} 97. Kb4 {[%clk 0:00:12]}  Rc8 {[%clk 0:00:07]} 98. Kb3 {[%clk 0:00:12]}  Rb8+ {[%clk 0:00:07]} 99. Kc4 {[%clk 0:00:12]}  Ke6 {[%clk 0:00:07]} 100. Kc3 {[%clk 0:00:12]}  Ke5 {[%clk 0:00:08]} 101. Re1+ {[%clk 0:00:13]}  Kd5 {[%clk 0:00:07]} 102. Rd1+ {[%clk 0:00:13]}  Kc5 {[%clk 0:00:08]} 103. Rh1 {[%clk 0:00:12]}  Rc8 {[%clk 0:00:08]} 104. Rh5+ {[%clk 0:00:12]}  Kd6+ {[%clk 0:00:09]} 105. Kd2 {[%clk 0:00:13]}  Rg8 {[%clk 0:00:09]} 106. Ke2 {[%clk 0:00:13]}  Ke6 {[%clk 0:00:09]} 107. Ke3 {[%clk 0:00:13]}  Rb8 {[%clk 0:00:09]} 108. Kd3 {[%clk 0:00:13]}  Rb3+ {[%clk 0:00:10]} 109. Kd4 {[%clk 0:00:13]}  Rg3 {[%clk 0:00:10]} 110. Ke4 {[%clk 0:00:12]}  Rg4+ {[%clk 0:00:11]} 111. Kf3 {[%clk 0:00:12]}  Ra4 {[%clk 0:00:11]} 112. Ke3 {[%clk 0:00:12]}  Kf6 {[%clk 0:00:12]} 113. Rb5 {[%clk 0:00:12]}  Ra3+ {[%clk 0:00:12]} 114. Ke4 {[%clk 0:00:12]}  Ke6 {[%clk 0:00:13]} 115. Kd4 {[%clk 0:00:11]}  Kd6 {[%clk 0:00:13]} 116. Ke4 {[%clk 0:00:11]}  Ra1 {[%clk 0:00:13]} 117. Kf4 {[%clk 0:00:10]}  Kc6 {[%clk 0:00:13]} 118. Rh5 {[%clk 0:00:10]}  Rf1+ {[%clk 0:00:14]} 119. Ke4 {[%clk 0:00:10]}  Kd6 {[%clk 0:00:15]} 120. Kd4 {[%clk 0:00:10]}  Rf4+ {[%clk 0:00:15]} 121. Ke3 {[%clk 0:00:10]}  Ra4 {[%clk 0:00:16]} 122. Kd3 {[%clk 0:00:10]}  Ke6 {[%clk 0:00:15]} 123. Ke3 {[%clk 0:00:10]}  Kf6 {[%clk 0:00:15]} 124. Kf3 {[%clk 0:00:09]}  Kg6 {[%clk 0:00:16]} 125. Rb5 {[%clk 0:00:09]}  Ra6 {[%clk 0:00:16]} 126. Ke3 {[%clk 0:00:09]}  Re6+ {[%clk 0:00:16]} 127. Kf3 {[%clk 0:00:09]}  Kf6 {[%clk 0:00:17]} 128. Kf4 {[%clk 0:00:09]}  Rc6 {[%clk 0:00:17]} 129. Ra5 {[%clk 0:00:08]}  Rb6 {[%clk 0:00:17]} 130. Ke4 {[%clk 0:00:08]}  Rb4+ {[%clk 0:00:17]} 131. Kf3 {[%clk 0:00:08]}  Ke7 {[%clk 0:00:18]} 132. Ke3 {[%clk 0:00:07]}  Kd6 {[%clk 0:00:18]} 133. Kd3 {[%clk 0:00:08]}  Rb3+ {[%clk 0:00:18]} 134. Kc4 {[%clk 0:00:08]}  Rg3 {[%clk 0:00:19]} 1/2-1/2


[Site "https://www.chess.com"]

[Event "Titled Tuesday Blitz August 31 2021"]
[White "Indjic, Aleksandar"]
[Black "Wong, Yinn Long"]
[WhiteFideId "911925"]
[BlackFideId "5707684"]
[WhiteElo "2643"]
[BlackElo "2016"]
[Result "1-0"]
[Round "04"]
[TimeControl "180+1"]
[Date "2021.08.31"]
[WhiteClock "0:01:15"]
[BlackClock "0:00:06"]

1. c4 {[%clk 0:03:00]}  c5 {[%clk 0:02:59]} 2. g3 {[%clk 0:03:00]}  g6 {[%clk 0:03:00]} 3. Bg2 {[%clk 0:03:00]}  Bg7 {[%clk 0:03:00]} 4. Nc3 {[%clk 0:03:00]}  Nc6 {[%clk 0:03:01]} 5. d3 {[%clk 0:02:56]}  d6 {[%clk 0:03:01]} 6. Qd2 {[%clk 0:02:55]}  f5 {[%clk 0:02:51]} 7. b3 {[%clk 0:02:55]}  Nf6 {[%clk 0:02:50]} 8. Bb2 {[%clk 0:02:54]}  O-O {[%clk 0:02:50]} 9. h4 {[%clk 0:02:51]}  e5 {[%clk 0:02:41]} 10. e3 {[%clk 0:02:47]}  Be6 {[%clk 0:02:38]} 11. Nd5 {[%clk 0:02:46]}  Bxd5 {[%clk 0:02:35]} 12. cxd5 {[%clk 0:02:45]}  Ne7 {[%clk 0:02:35]} 13. e4 {[%clk 0:02:44]}  f4 {[%clk 0:02:15]} 14. Bh3 {[%clk 0:02:42]}  fxg3 {[%clk 0:02:09]} 15. fxg3 {[%clk 0:02:43]}  Nh5 {[%clk 0:02:07]} 16. Ne2 {[%clk 0:02:41]}  Kh8 {[%clk 0:02:01]} 17. O-O-O {[%clk 0:02:16]}  b5 {[%clk 0:01:49]} 18. Rdf1 {[%clk 0:02:13]}  c4 {[%clk 0:01:32]} 19. Kb1 {[%clk 0:02:10]}  a5 {[%clk 0:01:20]} 20. g4 {[%clk 0:02:10]}  Nf4 {[%clk 0:01:16]} 21. Nxf4 {[%clk 0:02:08]}  Rxf4 {[%clk 0:01:14]} 22. Rxf4 {[%clk 0:02:07]}  exf4 {[%clk 0:01:15]} 23. Bxg7+ {[%clk 0:02:06]}  Kxg7 {[%clk 0:01:16]} 24. Qb2+ {[%clk 0:02:06]}  Kf7 {[%clk 0:01:08]} 25. g5 {[%clk 0:02:05]}  Qf8 {[%clk 0:00:40]} 26. Be6+ {[%clk 0:02:03]}  Ke8 {[%clk 0:00:41]} 27. bxc4 {[%clk 0:02:04]}  Rb8 {[%clk 0:00:38]} 28. cxb5 {[%clk 0:02:03]}  f3 {[%clk 0:00:36]} 29. b6 {[%clk 0:02:02]}  Qf4 {[%clk 0:00:34]} 30. Rf1 {[%clk 0:01:45]}  a4 {[%clk 0:00:12]} 31. a3 {[%clk 0:01:28]}  Rb7 {[%clk 0:00:04]} 32. Ka2 {[%clk 0:01:20]}  Rb8 {[%clk 0:00:04]} 33. Qh8+ {[%clk 0:01:17]}  Qf8 {[%clk 0:00:04]} 34. Qxf8+ {[%clk 0:01:17]}  Kxf8 {[%clk 0:00:05]} 35. Rxf3+ {[%clk 0:01:16]}  Ke8 {[%clk 0:00:06]} 36. Rf7 {[%clk 0:01:16]}  Rxb6 {[%clk 0:00:05]} 37. Rxh7 {[%clk 0:01:16]}  Kd8 {[%clk 0:00:06]} 38. Rh8+ {[%clk 0:01:15]}  Kc7 {[%clk 0:00:06]} 39. Re8 {[%clk 0:01:15]} 1-0


[Site "https://www.chess.com"]

[Event "Titled Tuesday Blitz August 31 2021"]
[White "Jarovinsky, Alexey"]
[Black "Piesik, Piotr"]
[WhiteFideId "14115131"]
[BlackFideId "1136194"]
[WhiteElo "2446"]
[BlackElo "2395"]
[Result "1-0"]
[Round "04"]
[TimeControl "180+1"]
[Date "2021.08.31"]
[WhiteClock "0:00:03"]
[BlackClock "0:00:04"]

1. Nc3 {[%clk 0:03:00]}  g6 {[%clk 0:02:59]} 2. h4 {[%clk 0:02:59]}  h5 {[%clk 0:02:59]} 3. d4 {[%clk 0:02:59]}  Bg7 {[%clk 0:02:58]} 4. e4 {[%clk 0:02:58]}  c6 {[%clk 0:02:58]} 5. Be3 {[%clk 0:02:58]}  d5 {[%clk 0:02:58]} 6. f3 {[%clk 0:02:45]}  dxe4 {[%clk 0:02:58]} 7. fxe4 {[%clk 0:02:42]}  Nf6 {[%clk 0:02:57]} 8. Nf3 {[%clk 0:02:38]}  Ng4 {[%clk 0:02:57]} 9. Bf4 {[%clk 0:02:33]}  e5 {[%clk 0:02:54]} 10. Nxe5 {[%clk 0:02:30]}  Nxe5 {[%clk 0:02:54]} 11. dxe5 {[%clk 0:02:05]}  Qxd1+ {[%clk 0:02:53]} 12. Rxd1 {[%clk 0:02:04]}  Be6 {[%clk 0:02:54]} 13. Ne2 {[%clk 0:01:49]}  Nd7 {[%clk 0:02:54]} 14. Nd4 {[%clk 0:01:47]}  Bg4 {[%clk 0:02:53]} 15. Nf3 {[%clk 0:01:41]}  O-O {[%clk 0:02:41]} 16. Bc4 {[%clk 0:01:35]}  Rae8 {[%clk 0:02:35]} 17. e6 {[%clk 0:01:31]}  Bxe6 {[%clk 0:02:25]} 18. Bxe6 {[%clk 0:01:30]}  Rxe6 {[%clk 0:02:25]} 19. Ng5 {[%clk 0:01:14]}  Nc5 {[%clk 0:02:17]} 20. Nxe6 {[%clk 0:01:10]}  Nxe6 {[%clk 0:02:18]} 21. Bd6 {[%clk 0:01:05]}  Re8 {[%clk 0:02:11]} 22. c3 {[%clk 0:01:04]}  Nd8 {[%clk 0:01:56]} 23. Kf2 {[%clk 0:00:58]}  Rxe4 {[%clk 0:01:56]} 24. Rhe1 {[%clk 0:00:56]}  Rxe1 {[%clk 0:01:56]} 25. Kxe1 {[%clk 0:00:52]}  Bf6 {[%clk 0:01:56]} 26. g3 {[%clk 0:00:47]}  Ne6 {[%clk 0:01:56]} 27. Bb8 {[%clk 0:00:43]}  a6 {[%clk 0:01:43]} 28. Rd7 {[%clk 0:00:41]}  Nc5 {[%clk 0:01:41]} 29. Rc7 {[%clk 0:00:41]}  Kg7 {[%clk 0:01:34]} 30. Kd1 {[%clk 0:00:31]}  Be5 {[%clk 0:01:14]} 31. Rc8 {[%clk 0:00:28]}  Bf6 {[%clk 0:01:14]} 32. Bf4 {[%clk 0:00:24]}  Ne6 {[%clk 0:01:10]} 33. Bd6 {[%clk 0:00:21]}  g5 {[%clk 0:01:01]} 34. hxg5 {[%clk 0:00:20]}  Nxg5 {[%clk 0:00:59]} 35. Rb8 {[%clk 0:00:20]}  Ne4 {[%clk 0:00:59]} 36. Bc7 {[%clk 0:00:20]}  b5 {[%clk 0:00:57]} 37. Rb6 {[%clk 0:00:19]}  c5 {[%clk 0:00:47]} 38. Rxa6 {[%clk 0:00:19]}  b4 {[%clk 0:00:47]} 39. cxb4 {[%clk 0:00:18]}  cxb4 {[%clk 0:00:48]} 40. Kc2 {[%clk 0:00:19]}  Nc5 {[%clk 0:00:36]} 41. Rc6 {[%clk 0:00:18]}  Ne6 {[%clk 0:00:35]} 42. Bb6 {[%clk 0:00:15]}  Be5 {[%clk 0:00:33]} 43. Bf2 {[%clk 0:00:14]}  Bxg3 {[%clk 0:00:33]} 44. Rxe6 {[%clk 0:00:14]}  Bxf2 {[%clk 0:00:32]} 45. Re2 {[%clk 0:00:14]}  Bg3 {[%clk 0:00:30]} 46. Kb3 {[%clk 0:00:13]}  h4 {[%clk 0:00:29]} 47. Rg2 {[%clk 0:00:11]}  f5 {[%clk 0:00:29]} 48. Kc2 {[%clk 0:00:09]}  f4 {[%clk 0:00:25]} 49. Kd3 {[%clk 0:00:10]}  h3 {[%clk 0:00:24]} 50. Rg1 {[%clk 0:00:09]}  h2 {[%clk 0:00:23]} 51. Rh1 {[%clk 0:00:09]}  Kf6 {[%clk 0:00:23]} 52. Ke4 {[%clk 0:00:09]}  Kg5 {[%clk 0:00:23]} 53. Kf3 {[%clk 0:00:09]}  Kf5 {[%clk 0:00:23]} 54. a4 {[%clk 0:00:09]}  bxa3 {[%clk 0:00:21]} 55. bxa3 {[%clk 0:00:10]}  Ke5 {[%clk 0:00:21]} 56. Rd1 {[%clk 0:00:09]}  Bh4 {[%clk 0:00:17]} 57. a4 {[%clk 0:00:06]}  Be7 {[%clk 0:00:14]} 58. Rh1 {[%clk 0:00:07]}  Kd5 {[%clk 0:00:11]} 59. Rxh2 {[%clk 0:00:07]}  Bd6 {[%clk 0:00:09]} 60. Rc2 {[%clk 0:00:07]}  Ke6 {[%clk 0:00:07]} 61. a5 {[%clk 0:00:07]}  Kd7 {[%clk 0:00:07]} 62. a6 {[%clk 0:00:07]}  Bb8 {[%clk 0:00:07]} 63. Ke4 {[%clk 0:00:06]}  Kd8 {[%clk 0:00:07]} 64. Rc4 {[%clk 0:00:05]}  Kd7 {[%clk 0:00:07]} 65. Rc5 {[%clk 0:00:05]}  Kd8 {[%clk 0:00:07]} 66. Rc6 {[%clk 0:00:04]}  Kd7 {[%clk 0:00:07]} 67. Rb6 {[%clk 0:00:04]}  Kc8 {[%clk 0:00:08]} 68. Rb7 {[%clk 0:00:04]}  Bc7 {[%clk 0:00:08]} 69. Kf3 {[%clk 0:00:03]}  Bb8 {[%clk 0:00:08]} 70. Rf7 {[%clk 0:00:03]}  Bd6 {[%clk 0:00:04]} 71. a7 {[%clk 0:00:03]} 1-0


[Site "https://www.chess.com"]

[Event "Titled Tuesday Blitz August 31 2021"]
[White "Javakhadze, Zurab"]
[Black "Vivas Zamora, Fabian Ernesto"]
[WhiteFideId "13603647"]
[BlackFideId "3902480"]
[WhiteElo "2381"]
[BlackElo "1966"]
[Result "1-0"]
[Round "04"]
[TimeControl "180+1"]
[Date "2021.08.31"]
[WhiteClock "0:00:40"]
[BlackClock "0:00:01"]

1. Nf3 {[%clk 0:02:00]}  Nf6 {[%clk 0:02:49]} 2. d4 {[%clk 0:01:59]}  g6 {[%clk 0:02:48]} 3. c4 {[%clk 0:02:00]}  Bg7 {[%clk 0:02:48]} 4. Nc3 {[%clk 0:02:01]}  d5 {[%clk 0:02:49]} 5. h4 {[%clk 0:02:01]}  dxc4 {[%clk 0:02:43]} 6. e4 {[%clk 0:02:00]}  c5 {[%clk 0:02:43]} 7. d5 {[%clk 0:02:00]}  b5 {[%clk 0:02:42]} 8. h5 {[%clk 0:01:46]}  O-O {[%clk 0:02:33]} 9. hxg6 {[%clk 0:01:46]}  fxg6 {[%clk 0:02:34]} 10. e5 {[%clk 0:01:46]}  Ng4 {[%clk 0:02:31]} 11. d6 {[%clk 0:01:44]}  Bb7 {[%clk 0:01:45]} 12. Bg5 {[%clk 0:01:18]}  Nc6 {[%clk 0:00:46]} 13. Qd4 {[%clk 0:01:11]}  Ngxe5 {[%clk 0:00:42]} 14. Qd5+ {[%clk 0:01:04]}  Kh8 {[%clk 0:00:38]} 15. dxe7 {[%clk 0:01:03]}  Nxe7 {[%clk 0:00:29]} 16. Qxb7 {[%clk 0:01:01]}  Nxf3+ {[%clk 0:00:09]} 17. gxf3 {[%clk 0:01:02]}  Qa5 {[%clk 0:00:09]} 18. Rc1 {[%clk 0:00:47]}  Nf5 {[%clk 0:00:07]} 19. Be2 {[%clk 0:00:44]}  Rae8 {[%clk 0:00:03]} 20. Kf1 {[%clk 0:00:43]}  Nd4 {[%clk 0:00:02]} 21. Bh6 {[%clk 0:00:39]}  Bxh6 {[%clk 0:00:01]} 22. Rxh6 {[%clk 0:00:40]} 1-0


[Site "https://www.chess.com"]

[Event "Titled Tuesday Blitz August 31 2021"]
[White "Kamsky, Gata"]
[Black "Maiorov, Nikita"]
[WhiteFideId "2000024"]
[BlackFideId "13501720"]
[WhiteElo "2644"]
[BlackElo "2440"]
[Result "1-0"]
[Round "04"]
[TimeControl "180+1"]
[Date "2021.08.31"]
[WhiteClock "0:00:42"]
[BlackClock "0:00:01"]

1. e4 {[%clk 0:03:00]}  e5 {[%clk 0:02:59]} 2. Nf3 {[%clk 0:02:58]}  Nc6 {[%clk 0:02:58]} 3. Bb5 {[%clk 0:02:57]}  a6 {[%clk 0:02:57]} 4. Ba4 {[%clk 0:02:57]}  Nf6 {[%clk 0:02:56]} 5. O-O {[%clk 0:02:56]}  Be7 {[%clk 0:02:56]} 6. Re1 {[%clk 0:02:55]}  b5 {[%clk 0:02:55]} 7. Bb3 {[%clk 0:02:54]}  d6 {[%clk 0:02:55]} 8. c3 {[%clk 0:02:54]}  O-O {[%clk 0:02:54]} 9. d4 {[%clk 0:02:54]}  Bg4 {[%clk 0:02:52]} 10. d5 {[%clk 0:02:54]}  Na5 {[%clk 0:02:52]} 11. Bc2 {[%clk 0:02:53]}  c6 {[%clk 0:02:51]} 12. h3 {[%clk 0:02:53]}  Bxf3 {[%clk 0:02:50]} 13. Qxf3 {[%clk 0:02:52]}  cxd5 {[%clk 0:02:50]} 14. exd5 {[%clk 0:02:52]}  Nc4 {[%clk 0:02:47]} 15. Nd2 {[%clk 0:02:40]}  Nb6 {[%clk 0:02:46]} 16. Nf1 {[%clk 0:02:39]}  Qc7 {[%clk 0:02:45]} 17. Ne3 {[%clk 0:02:33]}  g6 {[%clk 0:02:44]} 18. a4 {[%clk 0:02:30]}  Rfc8 {[%clk 0:02:38]} 19. axb5 {[%clk 0:02:26]}  axb5 {[%clk 0:02:37]} 20. Rxa8 {[%clk 0:02:23]}  Rxa8 {[%clk 0:02:36]} 21. Bd3 {[%clk 0:02:19]}  Nc4 {[%clk 0:01:57]} 22. Nc2 {[%clk 0:02:17]}  Nh5 {[%clk 0:01:16]} 23. Nb4 {[%clk 0:02:10]}  Ra1 {[%clk 0:01:15]} 24. Rf1 {[%clk 0:01:57]}  Bf8 {[%clk 0:01:07]} 25. Nc6 {[%clk 0:01:52]}  Ng7 {[%clk 0:01:00]} 26. g4 {[%clk 0:01:45]}  h5 {[%clk 0:00:38]} 27. b4 {[%clk 0:01:24]}  Qd7 {[%clk 0:00:23]} 28. Bxc4 {[%clk 0:01:15]}  bxc4 {[%clk 0:00:22]} 29. Bg5 {[%clk 0:01:13]}  hxg4 {[%clk 0:00:19]} 30. Qxg4 {[%clk 0:01:09]}  f5 {[%clk 0:00:15]} 31. Qxc4 {[%clk 0:01:06]}  Ra3 {[%clk 0:00:14]} 32. Nd8 {[%clk 0:00:55]}  f4 {[%clk 0:00:13]} 33. Ne6 {[%clk 0:00:55]}  Qf7 {[%clk 0:00:11]} 34. Qc8 {[%clk 0:00:53]}  Qf5 {[%clk 0:00:07]} 35. Bh6 {[%clk 0:00:48]}  f3 {[%clk 0:00:06]} 36. Qxf8+ {[%clk 0:00:47]}  Qxf8 {[%clk 0:00:05]} 37. Nxf8 {[%clk 0:00:47]}  Kxf8 {[%clk 0:00:05]} 38. Rb1 {[%clk 0:00:47]}  Rxc3 {[%clk 0:00:04]} 39. b5 {[%clk 0:00:47]}  Rc7 {[%clk 0:00:04]} 40. b6 {[%clk 0:00:47]}  Rb7 {[%clk 0:00:05]} 41. Kh2 {[%clk 0:00:46]}  Kf7 {[%clk 0:00:04]} 42. Bxg7 {[%clk 0:00:47]}  Kxg7 {[%clk 0:00:04]} 43. Kg3 {[%clk 0:00:47]}  Kf6 {[%clk 0:00:03]} 44. Kxf3 {[%clk 0:00:47]}  Kf5 {[%clk 0:00:04]} 45. Ke3 {[%clk 0:00:44]}  g5 {[%clk 0:00:04]} 46. f3 {[%clk 0:00:44]}  Kf6 {[%clk 0:00:03]} 47. Rb4 {[%clk 0:00:42]}  Kf5 {[%clk 0:00:03]} 48. Kd3 {[%clk 0:00:42]}  Kf6 {[%clk 0:00:02]} 49. Kc4 {[%clk 0:00:42]}  Kf5 {[%clk 0:00:01]} 50. Kb5 {[%clk 0:00:42]} 1-0


[Site "https://www.chess.com"]